Cogmind - Beta 13 @@@ ROGUE MODE // 2024.04.03 @ 21:10:23 Player: ConfusedWizard Result: Self-destructed Performance ------------- Evolutions (1) 500 Regions Visited (2) 400 Robots Destroyed (17) 85 Value Destroyed (450) 450 Prototype IDs (2) 40 Alien Tech Used (0) 0 Bonus (0) 0 TOTAL SCORE: 1475 Bonus ------- None Cogmind --------- Core Integrity 183/400 Matter 5/300 Energy 100/100 System Corruption 0% Temperature Cool (9) Movement Walking (190) Ox1 Location -9/Materials Parts ------- > --- POWER (1) -------- (None) > --- PROPULSION (4) --- Aluminum Leg > --- UTILITY (2) ------ Medium Storage Unit Targeting Computer > --- WEAPON (2) ------- High-powered Shotgun High-powered Shotgun > --- INVENTORY (10) --- Large Storage Unit High-capacity Matter Pod (0) Visual Processing Unit Hardlight Generator High-powered Shotgun High-powered Shotgun Grenade Launcher Peak State ------------ > --- POWER ------------ Improved Ion Engine > --- PROPULSION ------- Aluminum Leg > --- UTILITY ---------- Medium Storage Unit Targeting Computer > --- WEAPON ----------- Assault Rifle High-powered Shotgun > --- INVENTORY -------- Large Storage Unit High-capacity Matter Pod Visual Processing Unit Hardlight Generator Assault Rifle Light Assault Rifle Light Assault Rifle Grenade Launcher [Rating: 10] Favorites ----------- Power Light Ion Engine Engine Light Ion Engine Propulsion Aluminum Leg Leg Aluminum Leg Utility Medium Storage Unit Storage Medium Storage Unit Processor Targeting Computer Weapon Assault Rifle Ballistic Gun Assault Rifle Build | -11 -10 -9 ------- Run | Yrd Mat Mat Slots Evolved 2 | . . 2 Power . | . . . Propulsion 2 | . . 2 Utility . | . . . Weapon . | . . . Parts Attached 19 | 6 6 7 Power 3 | 1 1 1 Engine 3 | 1 1 1 Core . | . . . Reactor . | . . . Propulsion 6 | 2 2 2 Treads . | . . . Leg 6 | 2 2 2 Wheel . | . . . Hover . | . . . Flight . | . . . Utility 4 | 1 3 . Device . | . . . Storage 3 | 1 2 . Processor 1 | . 1 . Hackware . | . . . Protection . | . . . Artifact . | . . . Weapon 6 | 2 . 4 Energy Gun . | . . . Energy Cannon . | . . . Ballistic Gun 6 | 2 . 4 Ballistic Cannon . | . . . Launcher . | . . . Special Weapon . | . . . Impact Weapon . | . . . Slashing Weapon . | . . . Piercing Weapon . | . . . Special Melee Weapon . | . . . Unidentified Prototypes . | . . . Parts Lost 5 | . 1 4 Power 2 | . . 2 Propulsion 3 | . 1 2 Utility . | . . . Weapon . | . . . Highest Loss Streak 3 | . 1 3 To Critical Strikes . | . . . Average Slot Usage (%) 80 | . 91 66 Engine 10 | . 14 6 Leg 22 | . 27 16 Storage 12 | . 14 11 Processor 8 | . 6 11 Ballistic Gun 25 | . 28 21 Naked Turns . | . . . Heaviest Build 21 | 11 16 21 Greatest Support 20 | 20 20 20 Greatest Overweight (x) 4 | 1 1 4 Average Overweight (x) . | . . . Largest Inventory Capacity 10 | 8 10 10 Average Capacity 9 | 7 9 10 Most Carried 10 | 2 10 10 Average Carried 7 | 1 7 8 Final Capacity 10 | 8 10 10 Final Carried 9 | 2 9 7 Class Distribution -------------------- 100% | Mutant Dominant Class ---------------- Mutant | -10/Materials Mutant | -9/Materials Resources | -11 -10 -9 ----------- Run | Yrd Mat Mat Matter Collected 374 | 253 43 78 Remotely . | . . . Salvage Created 602 | 95 300 207 Parts 42 | 4 20 18 Haulers Intercepted . | . . . Recyclers Shooed 1 | . . 1 Parts Field Recycled . | . . . Retrieved Matter . | . . . Parts Self-Destructed . | . . . Prevented . | . . . Kills | -11 -10 -9 ------- Run | Yrd Mat Mat Combat Hostiles Destroyed 13 | . 8 5 Guns 13 | . 8 5 Classes Destroyed 6 | 1 3 2 Recycler 1 | 1 . . Watcher 3 | . 2 1 Swarmer 4 | . 3 1 Grunt 7 | . 5 2 Duelist 1 | . . 1 Sentry 1 | . . 1 Best Kill Streak 4 | 1 4 2 Combat Bots Only 3 | . 3 2 Max Kills in Single Turn 1 | 1 1 1 Gunslinging . | . . . Exploded . | . . . Melee . | . . . Uniques/NPCs Destroyed . | . . . Combat | -11 -10 -9 -------- Run | Yrd Mat Mat Hostile Shots Fired 120 | . 48 72 Missed 35 | . 16 19 Damage Taken 1211 | . 371 840 Core 314 | . 97 217 Absorbed by Shields . | . . . Regen/Repaired (Parts) 29 | . . 29 Core Remaining (%) 80 | 100 61 . Volleys Fired 63 | 4 31 28 Largest 2 | 2 2 2 Hottest 50 | 40 40 50 Shots Fired 123 | 8 62 53 Gun 123 | 8 62 53 Cannon . | . . . Launcher . | . . . Special . | . . . Kinetic 123 | 8 62 53 Thermal . | . . . Explosive . | . . . Electromagnetic . | . . . Robot Hit Streak 12 | 3 8 12 Robot Miss Streak 5 | 1 5 5 Penetration Max . | . . . Secondary Targets 3 | . 3 . Max Gunslinging Chain 1 | . 1 . Shots Hit Robots 69 | 4 32 33 Core Hits 32 | 1 18 13 Critical Kills . | . . . Critical Parts Destroyed 1 | 1 . . Critical Strikes 1 | 1 . . Destroy 1 | 1 . . Melee Attacks . | . . . Impact . | . . . Slashing . | . . . Piercing . | . . . Sneak Attacks . | . . . Combat Hostiles . | . . . Follow-up Attacks . | . . . Damage Inflicted 955 | 57 333 565 Guns 953 | 57 333 563 Cannons . | . . . Explosions . | . . . Melee . | . . . Ramming 2 | . . 2 Kinetic 953 | 57 333 563 Thermal . | . . . Explosive . | . . . Electromagnetic . | . . . Impact . | . . . Slashing . | . . . Piercing . | . . . Highest Corruption . | . . . Average Corruption . | . . . Corruption Purged . | . . . Corruption Blocked . | . . . Overload Shots . | . . . Overflow Damage . | . . . Projectiles . | . . . Explosions . | . . . Melee . | . . . Knockbacks . | . . . Impact . | . . . Kinetic . | . . . Secondary . | . . . Self-Inflicted Damage . | . . . Shots . | . . . Rammed . | . . . Targets Rammed 2 | . 1 1 Kicked 2 | . 1 1 Crushed . | . . . Highest Temperature 24 | . 24 . Average Temperature 9 | . 9 . Received Heat Transfer 279 | . 183 96 Siege Activations . | . . . Robots Corrupted . | . . . Combat Hostiles . | . . . Parts Fried . | . . . Impact Corruptions . | . . . Robots Melted . | . . . Combat Hostiles . | . . . Parts Melted . | . . . Heat Transferred . | . . . Parts Sabotaged . | . . . Parts Stolen . | . . . Parts Stripped . | . . . Power Chain Reactions . | . . . Alert | -11 -10 -9 ------- Run | Yrd Mat Mat Peak Influence 167 | 5 167 151 Initial 70 | . 3 70 Average 69 | . 65 86 Maximum Alert Level . | . . . Low Security (%) 100 | 100 100 100 Level 1 . | . . . Level 2 . | . . . Level 3 . | . . . Level 4 . | . . . Level 5 . | . . . High Security . | . . . Max Security . | . . . Squads Dispatched 1 | . 1 . Investigation . | . . . Extermination . | . . . Reinforcement 1 | . 1 . Assault . | . . . Garrison . | . . . Intercept . | . . . Searches Triggered . | . . . Construction Impeded . | . . . Haulers Reinforced . | . . . Active Scanning Responses . | . . . Cargo Convoy Interrupts . | . . . Stealth | -11 -10 -9 --------- Run | Yrd Mat Mat Distress Signals 3 | . 1 2 Communications Jammed . | . . . Distress Signals . | . . . Times Spotted 30 | . 16 14 Peak Tracking Total 7 | . 5 7 Tactical Retreats . | . . . Traps | -11 -10 -9 ------- Run | Yrd Mat Mat Traps Triggered . | . . . Indirectly . | . . . Trap Hack Attempts . | . . . Triggered . | . . . Disarmed . | . . . Reprogrammed . | . . . Reused . | . . . Traps Extracted . | . . . Installed . | . . . Triggered . | . . . Machines | -11 -10 -9 ---------- Run | Yrd Mat Mat Machines Disabled . | . . . Max in Single Turn . | . . . Machines Repaired . | . . . Machines Dismantled . | . . . Machines Sabotaged . | . . . Overloaded Fab Kills . | . . . Hacking | -11 -10 -9 --------- Run | Yrd Mat Mat Machines Accessed 5 | . 2 3 Terminals 4 | . 2 2 Fabricators . | . . . Repair Stations 1 | . . 1 Recycling Units . | . . . Scanalyzers . | . . . Garrison Access . | . . . Total Hacks 10 | . 5 5 Successful 7 | . 3 4 Failed 3 | . 2 1 Catastrophic . | . . . Database Lockouts . | . . . Manual . | . . . Terminals 8 | . 5 3 Fabricators . | . . . Repair Stations 2 | . . 2 Recycling Units . | . . . Scanalyzers . | . . . Garrison Access . | . . . Terminal Hacks 5 | . 3 2 Record 2 | . . 2 Robot Analysis 1 | . 1 . Prototype ID Bank 1 | . 1 . Maintenance Status 1 | . 1 . Fabricator Hacks . | . . . Repair Station Hacks 2 | . . 2 Scan Component 1 | . . 1 Repair 1 | . . 1 Recycling Unit Hacks . | . . . Scanalyzer . | . . . Garrison Access Hacks . | . . . Unauthorized Hacks . | . . . Terminals . | . . . Fabricators . | . . . Repair Stations . | . . . Recycling Units . | . . . Scanalyzers . | . . . Garrison Access . | . . . Data Cores Recovered . | . . . Used . | . . . Hacking Detections 5 | . 2 3 Full Trace Events . | . . . Feedback Events . | . . . Feedback Blocked . | . . . Robot Schematics Acquired . | . . . Robots Built . | . . . Authchips . | . . . Time . | . . . Total Robot Build Rating . | . . . Part Schematics Acquired . | . . . Parts Built . | . . . Authchips . | . . . Time . | . . . Total Part Build Rating . | . . . Parts Repaired 1 | . . 1 Time 26 | . . 26 Parts Recycled . | . . . Recycled Matter . | . . . Retrieved Matter . | . . . Retrieved Components . | . . . Parts Scanalyzed . | . . . Part Schematics Acquired . | . . . Parts Damaged . | . . . Bothacking | -11 -10 -9 ------------ Run | Yrd Mat Mat Used RIF Installer . | . . . Robots Hacked . | . . . Non-combat . | . . . Combat . | . . . Robot Hacks Applied . | . . . Relay Couplers Released . | . . . Fabnet Peak Effective % . | . . . Robots Rewired . | . . . Allies Hacked . | . . . Hacks Repelled . | . . . Allies | -11 -10 -9 -------- Run | Yrd Mat Mat Total Allies . | . . . Largest Group . | . . . Highest-Rated Group . | . . . Highest-Rated Ally . | . . . Total Orders . | . . . Ally Attacks . | . . . Total Damage . | . . . Kills . | . . . Allies Corrupted . | . . . Allies Melted . | . . . Intel | -11 -10 -9 ------- Run | Yrd Mat Mat Robot Analysis Total 1 | . 1 . Derelict Logs Recovered . | . . . Drone Launches . | . . . Drone Recoveries . | . . . Exploration | -11 -10 -9 ------------- Run | Yrd Mat Mat Turns Passed 1221 | 78 654 489 Spaces Moved 737 | 45 446 246 Core 9 | 7 . 2 Treads . | . . . Legs 728 | 38 446 244 Wheels . | . . . Hover . | . . . Flight . | . . . Fastest Speed 50 | 50 120 120 Average Speed 129 | 115 120 149 Slowest Speed 250 | 120 190 250 Overloaded Moves . | . . . Propulsion Burnouts . | . . . Robots Hopped . | . . . Cave-ins Triggered . | . . . Exploration Rate (%) 31 | 4 64 27 Regions Visited 2 Branch Regions . Pre-discovered Areas . | . . . Known Exits Taken . | . . . Unknown Exits Taken 2 | 1 1 . Scrap Searched . | . . . Spaces Dug . | . . . Terrain Destroyed . | . . . Melee . | . . . Projectile . | . . . AOE . | . . . Terrain Rammed . | . . . Walls Destroyed . | . . . Machines Disabled . | . . . Actions | -11 -10 -9 --------- Run | Yrd Mat Mat Total 887 | 63 508 316 Wait 30 | 1 9 20 Move 735 | 44 445 246 Hop . | . . . Pick Up 28 | 8 12 8 Fast Attach . | . . . Attach 16 | 6 5 5 Detach 1 | . 1 . Swap 3 | . 1 2 Drop 9 | . 3 6 Fire 63 | 4 31 28 Melee . | . . . Ram . | . . . Kick 2 | . 1 1 Crush . | . . . Escape Stasis . | . . . Rewire . | . . . Trap . | . . . Miscellaneous . | . . . Route ------- -11/Scrapyard -10/Materials (discovered 3 exits: *Mat x2 / [*Min]) -9/Materials History --------- Turn | Location | Event 2 | -11/Scrapyard | Met Revision 17 10 | -11/Scrapyard | Discovered new exit (range 16) 79 | -11/Scrapyard | Entered Materials 238 | -10/Materials | Discovered new exit (range 7) 310 | -10/Materials | Build established: Mutant 394 | -10/Materials | Discovered new exit (range 11) 608 | -10/Materials | Discovered new exit (range 10) 733 | -10/Materials | Entered another Materials area 733 | -9/Materials | Evolved 2 slots: Propulsion x2 861 | -9/Materials | Repaired Aluminum Leg 1083 | -9/Materials | Lost 3 parts (1p2n) 1220 | -9/Materials | Core integrity fell below 50% 1222 | -9/Materials | Self-destructed Last Messages --------------- Dropped Assault Rifle. K-01 Serf cleans the Integration Channel. Acquired Hpw. Shotgun. Connecting with Terminal... R-06 Scavenger collects Assault Rifle. R-06 Scavenger collects Lgt. Assault Rifle. R-06 Scavenger collects Assault Rifle. C-30 ARC bursts open, deploying its payload. S-10 Pest unfolds itself. K-01 Serf collects debris. S-10 Pest destroyed. K-01 Serf collects debris. R-06 Scavenger collects Flight Unit. G-34 Mercenary destroyed. K-01 Serf collects debris. R-06 Scavenger collects Heat Sink. K-01 Serf collects debris. R-06 Scavenger collects Lgt. Assault Rifle. K-01 Serf collects debris. R-06 Scavenger collects Aluminum Leg. Map ----- +----------------------------------------------------+ | ?????????????????????????????????????????????????? | | ?????????????????????????????????????????????????? | | ?????????????????????????????????????????????????? | | ?????????????????????????????????????????????????? | | ?????????????????????????????????????????????????? | | ?????????????????????????????????????????????????? | | ?????????????????????????????????????????????????? | | ?????????????????????????????????????????????????? | | ?????????????????????????????????????????????????? | | ?????????????????????????????????????????????????? | | ?????????????????????????????????????????????????? | | ?????????????????????????????????????????????????? | | ?????????????????????????????????????????????????? | | ?????????????????????????????????????????????????? | | #+###????????????????????????????????????????????? | | ????????########????????????????????????????? | | ] ????????# #????????????????????????????? | | ????????# " #????????????????????????????? | | "" ""????????# T #????????????????????????????? | | """""????????# " #????????????????????????????? | | """?????????# #????????????????????????????? | | ??????????# #????????????????????????????? | | #+###############+#############+######+#?????????? | | ss ????????? | | s rk ????????? | | r @ [Y= % ????????? | | #######[#######+##################?????????????? | | #?????#[#???? ?????????????????????????????? | | #?????# #???# #???????????????????????????? | | #?????# #???# """ #???????????????????????????? | | ###?????# #???# """ #???????????????????????????? | | ????????# #???# """ #???????????????????????????? | | ######### #???# #???????????????????????????? | | # ############???????????????????????????? | | # #?????????????????????????????? | | """ !+% #?????????????????????????????? | | """ # #?????????????????????????????? | | """ ######## + ??????????????????????? | | "T" #??????? # #???????????????????? | | # #######???????? #??########???????????????????? | | #???????????????? #?????????????????????????????? | | ?????????????????? ?????????????????????????????? | | ?????????????????? ????????????????????????????? | | ??????????????????? ???????????????????????????? | | ???????????????????####??????????????????????????? | | ?????????????????????????????????????????????????? | | ?????????????????????????????????????????????????? | | ?????????????????????????????????????????????????? | | ?????????????????????????????????????????????????? | | ?????????????????????????????????????????????????? | +----------------------------------------------------+ Best States ------------- Heat Dissipation 28 Energy Generation 12 Energy Capacity 265 Matter Stores 285 Matter Capacity 300 Sight Range 16 Terrain Scan Density 10 Evasion (%) 55 Targeting Accuracy 5 Item Schematics ----------------- None Robot Schematics ------------------ None Fabricated ------------ Nothing Alien Tech Used ----------------- None Achievements -------------- None Challenges ------------ None Game ------ Seed TerrabombScatterBuckler Manual? 0 Play Time 00:13:24 Cumulative 1.1 hours Start 2024.04.03 @ 20:57:37 End 2024.04.03 @ 21:10:23 Sessions 1 Manual Loads 0 Difficulty Rogue Special Mode None Game No. 6 Rogue 6 Adventurer 0 Explorer 0 Win Type - Total 0 Types 0/0/0/0/0/0/0/0/0 Lore% 2 Gallery% 5 Achievement% 4 Wizard Run 0 Options --------- Layout 1 ASCII 0 Keyboard 0 Movement Mouse Keybinds 0 Fullscreen 1 Font 32/SmallcapsGlow Map View 50x35 Zoom Use 0% Tactical HUD 0 Map Filters NONE Filters NONE Steam 1 RUN: 67afbdca-fb12-46cd-8a6a-004d416e15a5